bitfinex-derivatives/quotes_SOLF0:USTF0_20251211
["timestamp","ask_amount","ask_price","bid_price","bid_amount"]
[1765433114594,0.05224107,131.09,131.08,1.21]
[1765433120611,3.44224107,131.09,131.07,0.0576676]
[1765433124110,3.44224107,131.09,131.07,1.2676676]
[1765433125212,0.05224107,131.09,131.07,1.2676676]
[1765433130011,3.39,131.12,131.08,1.21]
[1765433130602,3.39,131.1,131.07,1.2676676]
[1765433131003,3.43946515,131.1,131.07,1.2676676]
[1765433131410,3.43946515,131.1,131.07,0.0576676]
[1765433131604,10.30396515,131.1,131.07,0.0576676]
[1765433131805,3.39,131.09,131.07,0.0576676]
[1765433146120,0.04946515,131.1,131.07,1.2676676]
[1765433146515,3.41946515,131.1,131.07,1.2676676]
[1765433147916,3.41946515,131.1,131.08,1.21]
[1765433148117,3.41946515,131.1,131.07,6.9235676]
[1765433148918,3.41946515,131.1,131.07,8.1335676]
[1765433150428,3.41946515,131.1,131.07,0.0576676]
[1765433160828,3.37,131.08,131.03,8.1377]
[1765433161330,3.37,131.06,131.02,1.27]
[1765433161839,3.37,131.04,131.03,0.05437045]
[1765433168931,3.42,131.02,130.98,1.27]
[1765433169134,3.42,131.01,130.98,1.27]
[1765433169937,3.47162807,131.01,130.98,1.32579972]
[1765433170337,3.47162807,131.01,130.98,0.05579972]
[1765433171240,3.42,130.99,130.98,0.05579972]
[1765433188452,3.42,130.99,130.94,8.1424]
[1765433189355,3.35,130.97,130.95,0.05229407]
[1765433192049,3.35,130.97,130.95,6.92439407]
[1765433192353,3.35,130.97,130.95,0.05229407]
[1765433204756,3.35,130.95,130.92,6.8735]
[1765433205762,3.39942665,130.95,130.92,6.92967969]
[1765433213774,3.39942665,130.95,130.93,8.1931]
[1765433221585,3.39942665,130.95,130.93,6.8731]
[1765433226587,3.39942665,130.95,130.93,8.1931]
[1765433226790,0.04942665,130.95,130.94,1.32]
[1765433238405,3.4,130.97,130.94,1.32]
[1765433238406,9.95,131.0,130.97,1.32]
[1765433238707,9.95,131.0,130.99,1.32]
[1765433239298,7.51975103,131.0,130.99,1.32]
[1765433240097,0.05693717,131.01,130.99,1.52]
[1765433240304,0.05693717,131.01,130.98,175.41208752]
[1765433241911,0.05693717,131.01,131.0,6.8696]
[1765433246413,3.34693717,131.01,130.98,6.91969767]
[1765433246605,3.34693717,131.01,130.98,71.79969767]
[1765433247619,0.05693717,131.01,130.99,6.8698]
[1765433250915,3.29,131.0,130.91,106.9292]
[1765433251116,3.29,131.0,130.93,64.88]
[1765433251915,3.29,130.97,130.95,0.05704484]
[1765433294070,3.42,130.96,130.95,0.05704484]
[1765433316276,0.05739257,130.98,130.95,6.92884484]
[1765433316480,3.27739257,130.98,130.95,6.92884484]
[1765433325080,3.27739257,130.98,130.96,6.8716]
[1765433327777,0.05739257,130.98,130.97,64.9]
[1765433329882,9.82,131.01,131.0,6.8696]
[1765433330188,9.82,131.01,131.0,74.06700752]
[1765433332289,9.48,131.06,131.04,6.8671]
[1765433332483,9.48,131.06,131.04,74.06450752]
[1765433332683,3.22,131.09,131.04,67.19740752]
[1765433333281,0.05680049,131.08,131.05,0.05147175]
[1765433333581,3.27680049,131.08,131.05,0.05147175]
[1765433335889,3.27680049,131.08,131.05,6.91827175]
[1765433345896,3.27680049,131.08,131.06,6.8663]
[1765433349099,3.28680049,131.08,131.06,6.8663]
[1765433352400,0.05680049,131.08,131.06,6.8663]
[1765433353395,3.28680049,131.08,131.06,6.8663]
[1765433355396,3.23,131.06,131.0,106.8565]
[1765433355595,3.23,131.06,131.0,171.7165]
[1765433355796,3.23,131.02,130.98,64.86]
[1765433356291,0.05203755,131.01,130.99,0.05050157]
[1765433356795,0.05203755,131.01,131.0,6.8694]
[1765433361905,0.05203755,131.01,131.0,8.3894]
[1765433363502,3.23,131.07,131.05,6.8669]
[1765433364509,3.28665992,131.07,131.05,6.92388039]
[1765433366504,0.05665992,131.07,131.05,6.92388039]
[1765433367197,0.05665992,131.07,131.06,64.86]
[1765433367401,3.36665992,131.07,131.05,0.05698039]
[1765433372699,3.36665992,131.07,131.05,6.92388039]
[1765433373303,0.05665992,131.07,131.05,6.92388039]
[1765433374004,3.36665992,131.07,131.05,6.92388039]
[1765433375711,0.05665992,131.07,131.05,6.92388039]
[1765433377511,3.21665992,131.07,131.05,6.92388039]
[1765433390815,0.05665992,131.07,131.05,6.92388039]
[1765433395725,3.21665992,131.07,131.05,6.92388039]
[1765433401138,3.21665992,131.07,131.05,0.05698039]
[1765433401342,3.16,131.05,130.97,106.8852]
[1765433401642,3.16,131.03,130.97,106.8852]
[1765433402236,3.21643493,131.01,130.99,0.04949642]
[1765433402938,3.21643493,131.01,130.99,6.91939642]
[1765433403847,3.21643493,131.01,130.99,0.04949642]
[1765433406832,3.16,131.0,130.99,0.04949642]
[1765433410738,0.05643493,131.01,130.99,0.04949642]
[1765433410945,3.21643493,131.01,130.99,0.04949642]
[1765433412146,0.05643493,131.01,130.99,0.04949642]
[1765433412933,0.05643493,131.01,130.99,6.91949642]
[1765433414740,3.21643493,131.01,130.99,6.91949642]
[1765433414944,0.05643493,131.01,130.99,6.91949642]
[1765433415834,0.05643493,131.01,130.99,74.09609105]
[1765433417248,0.05643493,131.01,130.99,71.79949642]
[1765433427861,0.05643493,131.01,130.99,74.09609105]
[1765433433960,3.29643493,131.01,130.99,71.79949642]
[1765433443272,0.05643493,131.01,130.99,71.79949642]
[1765433446080,3.28643493,131.01,130.99,64.92949642]
[1765433448581,3.28643493,131.01,130.94,106.9073]
[1765433448582,3.23,130.99,130.92,128.15047193]
[1765433448788,3.23,130.99,130.92,174.09809463]
[1765433449685,0.04818774,130.97,130.94,0.05557946]
[1765433449883,0.04818774,130.97,130.94,6.92827946]
[1765433450385,0.04818774,130.97,130.95,6.8721]
[1765433450583,6.99,131.02,130.96,67.17659463]
[1765433450584,10.22,131.02,130.96,67.17659463]
[1765433450784,10.22,131.02,130.98,2.29659463]
[1765433450989,10.22,131.02,130.98,9.16709463]
[1765433451587,0.05004193,131.01,130.99,0.05264995]
[1765433451887,5.57663656,131.01,130.99,0.05264995]
[1765433452091,3.23,131.0,130.99,0.05264995]
[1765433460098,3.23,131.0,130.94,9.16889463]
[1765433460599,3.3,130.98,130.94,6.8723]
[1765433461314,3.35063431,130.97,130.95,0.0502788]
[1765433474410,3.38063431,130.97,130.95,0.0502788]
[1765433502953,10.25183431,130.97,130.95,0.0502788]
[1765433503154,3.4,130.96,130.95,0.0502788]
[1765433508961,3.4,130.96,130.9,6.8744]
[1765433508962,3.4,130.94,130.9,6.8744]
[1765433509553,3.4,130.94,130.87,190.7940773]
[1765433510055,3.4,130.91,130.89,0.04931558]
[1765433510968,3.4,130.91,130.89,6.92451558]
[1765433514163,3.4,130.91,130.89,0.04931558]
[1765433514760,3.4,130.91,130.83,18.9323773]
[1765433515073,3.4,130.91,130.83,83.8523773]
[1765433515267,106.9216,130.93,130.83,71.7981]
[1765433515268,3.4,130.89,130.83,71.7981]
[1765433515761,3.4,130.86,130.85,0.04902587]
[1765433520768,3.29096535,130.87,130.85,0.04902587]
[1765433521575,0.05096535,130.87,130.85,10.51573782]
[1765433521768,0.05096535,130.87,130.86,64.92]
[1765433525676,3.37,130.94,130.89,6.8751]
[1765433525979,3.37,130.94,130.9,68.52941195]
[1765433526779,3.42810873,130.93,130.91,0.05595679]
[1765433530784,3.42810873,130.93,130.91,2.35402684]
[1765433538885,0.05810873,130.93,130.91,9.22812684]
[1765433539091,19.33,130.96,130.92,106.9213]
[1765433539276,19.33,130.96,130.95,2.29807005]
[1765433539480,19.33,130.96,130.95,67.21807005]
[1765433539676,3.38,130.98,130.95,67.21807005]
[1765433540290,0.05295427,130.98,130.95,67.27319461]
[1765433540486,0.05295427,130.98,130.97,2.29807005]
[1765433541390,3.43295427,130.98,130.97,2.29807005]
[1765433544187,3.43295427,130.98,130.95,0.05512456]
[1765433544391,3.43295427,130.98,130.95,64.95512456]
[1765433547391,3.43295427,130.98,130.95,67.25319461]
[1765433547591,0.05295427,130.98,130.95,67.25319461]
[1765433547898,0.05295427,130.98,130.97,2.29807005]
[1765433548897,3.43295427,130.98,130.95,64.95512456]
[1765433552304,3.43295427,130.98,130.95,0.05512456]
[1765433555913,3.22,130.96,130.95,0.05512456]
[1765433558412,3.22,130.97,130.95,0.05512456]
[1765433558713,3.27295427,130.98,130.95,0.05512456]
[1765433558914,3.27295427,130.98,130.95,6.92722456]
[1765433559209,0.05295427,130.98,130.96,2.29807005]
[1765433559415,0.05295427,130.98,130.96,67.19807005]
[1765433559617,0.05295427,130.98,130.96,74.06957005]
[1765433564025,0.05295427,130.98,130.96,71.7715]
[1765433567723,3.27295427,130.98,130.96,71.7715]
[1765433568622,0.05295427,130.98,130.96,71.7715]
[1765433580034,3.27295427,130.98,130.96,71.7715]
[1765433580528,3.27295427,130.98,130.96,64.9]
[1765433580728,3.22,130.97,130.93,64.88]
[1765433581621,3.22,130.95,130.93,64.88]
[1765433581827,3.22,130.95,130.94,0.05233115]
[1765433581828,0.05610953,130.95,130.94,0.05233115]
[1765433582620,3.22,131.0,130.95,6.8718]
[1765433582819,3.22,131.0,130.96,67.17807005]
[1765433583028,17.8,131.01,130.96,67.17807005]
[1765433583437,17.08,130.99,130.96,67.17807005]
[1765433583628,17.12954515,130.99,130.96,67.22761902]
[1765433584030,17.12954515,130.99,130.96,74.09921902]
[1765433584533,17.12954515,130.99,130.97,2.29807005]
[1765433584733,17.12954515,130.99,130.97,9.16907005]
[1765433585529,20.43954515,130.99,130.96,64.92954897]
[1765433585835,17.12954515,130.99,130.96,64.92954897]
[1765433586037,20.43954515,130.99,130.96,64.92954897]
[1765433589544,3.31,130.98,130.96,0.04954897]
[1765433589731,3.31,130.98,130.97,64.88]
[1765433591827,17.12954515,130.99,130.97,64.88]
[1765433593143,17.12954515,130.99,130.97,71.751]
[1765433600244,20.26954515,130.99,130.97,71.751]
[1765433600944,17.12954515,130.99,130.97,71.751]
[1765433603940,20.26954515,130.99,130.97,71.751]
[1765433605145,17.12954515,130.99,130.97,71.751]
[1765433605740,37.54954515,130.99,130.97,71.751]
[1765433606450,40.68954515,130.99,130.97,71.751]
[1765433609645,3.14,130.98,130.97,64.88]
[1765433610151,40.68954515,130.99,130.97,64.88]
[1765433610855,3.14,130.98,130.97,64.88]
[1765433613663,40.68954515,130.99,130.97,64.88]
[1765433613854,3.14,130.98,130.97,64.88]
[1765433616263,3.14,130.98,130.97,62.44107176]
[1765433617362,3.14,130.98,130.96,0.04954897]
[1765433618368,3.14,130.98,130.93,64.88]
[1765433619469,3.14,130.98,130.94,0.04955307]
[1765433619863,10.0108,130.98,130.94,0.04955307]
[1765433620064,3.28,130.97,130.94,0.04955307]
[1765433620672,16.74,130.96,130.94,0.04955307]
[1765433620968,16.79341119,130.96,130.94,0.04955307]
[1765433621670,38.49341119,130.96,130.94,0.04955307]
[1765433622270,3.28,130.95,130.94,0.04955307]
[1765433626474,35.21341119,130.96,130.94,0.04955307]
[1765433627559,35.21341119,130.96,130.94,6.92215307]
[1765433640776,3.28,130.95,130.94,6.92215307]
[1765433647988,35.21341119,130.96,130.94,6.92215307]
[1765433648378,38.54341119,130.96,130.94,6.92215307]
[1765433648579,35.21341119,130.96,130.94,6.92215307]
[1765433649079,38.54341119,130.96,130.94,6.92215307]
[1765433651891,3.15,130.95,130.94,6.92215307]
[1765433658187,38.36341119,130.96,130.94,6.92215307]
[1765433663400,3.15,130.95,130.94,6.92215307]
[1765433667600,3.15,130.95,130.94,0.04955307]
[1765433668505,38.36341119,130.96,130.94,0.04955307]
[1765433669404,3.15,130.95,130.94,0.04955307]
[1765433670206,38.36341119,130.96,130.94,0.04955307]
[1765433671919,3.15,130.95,130.94,0.04955307]
[1765433681323,38.36341119,130.96,130.94,6.92195307]
[1765433681916,35.21341119,130.96,130.94,6.92195307]
[1765433682126,35.21341119,130.96,130.94,28.21761254]
[1765433683520,35.21341119,130.96,130.95,18.99795484]
[1765433683521,32.62606215,130.96,130.95,18.99795484]
[1765433683825,3.15,131.0,130.97,6.871]
[1765433684027,3.15,131.0,130.98,64.9]
[1765433684823,3.20546243,131.0,130.98,64.95518122]
[1765433691021,5.44770463,130.99,130.98,64.95518122]
[1765433695829,3.15,130.99,130.98,64.95518122]
[1765433700434,3.15,130.99,130.98,0.05518122]
[1765433701134,5.44770463,130.99,130.94,64.88]
[1765433701338,3.15,130.98,130.94,64.88]
[1765433701733,2.29770463,130.99,130.89,125.9938399]
[1765433701734,3.15,130.96,130.9,9.17230463]
[1765433701934,3.15,130.96,130.9,74.05230463]
[1765433702135,2.29770463,130.97,130.9,74.05230463]
[1765433702136,3.15,130.93,130.92,0.05054945]
[1765433703429,0.05347968,130.94,130.92,2.34825408]
[1765433703834,3.20347968,130.94,130.92,2.34825408]
[1765433705741,0.05347968,130.94,130.92,2.34825408]
[1765433706134,0.05347968,130.94,130.92,9.22175408]
[1765433710448,0.05347968,130.94,130.92,28.26699398]
[1765433711056,0.05347968,130.94,130.92,9.22175408]
[1765433711238,0.05347968,130.94,130.92,28.26699398]
[1765433712652,0.05347968,130.94,130.93,3.58801972]
[1765433713253,21.06,131.01,130.95,6.8719]
[1765433713254,24.4,131.01,130.95,6.8719]
[1765433713450,3.34,131.0,130.96,68.48801972]
[1765433714158,3.39829175,130.99,130.97,0.04821872]
[1765433751381,3.39829175,130.99,130.97,6.91921872]
[1765433752481,0.05829175,130.99,130.97,6.91921872]
[1765433753882,0.05829175,130.99,130.97,29.75652252]
[1765433774599,3.27829175,130.99,130.97,29.75652252]
[1765433774894,3.22,130.97,130.96,64.88]
[1765433782498,3.22,130.97,130.96,51.12]
[1765433788100,3.22,130.97,130.95,0.04877503]
[1765433789601,3.22,130.95,130.87,2.89]
[1765433789808,3.22,130.93,130.9,2.89]
[1765433790489,3.27601697,130.93,130.9,2.94492863]
[1765433799411,5.61615357,130.92,130.85,2.9]
[1765433799613,3.32,130.89,130.83,5.19615357]
[1765433799911,3.32,130.89,130.84,2.9]
[1765433800407,0.05120721,130.88,130.85,0.04911822]
[1765433800607,3.32,130.87,130.85,0.04911822]
[1765433801512,3.32,130.87,130.85,2.94911822]
[1765433802306,3.32,130.87,130.85,0.04911822]
[1765433803012,3.32,130.87,130.85,2.94911822]
[1765433807707,3.32,130.87,130.85,0.04911822]
[1765433815620,0.05120721,130.88,130.86,2.9]
[1765433815826,0.05120721,130.88,130.87,5.19615357]
[1765433817426,20.44,130.92,130.88,2.9]
[1765433817612,20.44,130.92,130.9,2.9]
[1765433818221,20.49188223,130.92,130.9,2.95048863]
[1765433818521,5.61615357,130.91,130.85,2.29615357]
[1765433818726,2.29615357,130.89,130.83,70.13615357]
[1765433818916,3.32,130.88,130.84,2.95]
[1765433819618,3.32,130.86,130.85,0.05728188]
[1765433820415,3.3711261,130.87,130.85,3.00728188]
[1765433825925,0.0511261,130.87,130.86,2.95]
[1765433826313,17.12,130.92,130.87,2.95]
[1765433826515,17.12,130.92,130.91,2.95]
[1765433826929,20.29,130.92,130.9,2.95]
[1765433827132,3.17,130.91,130.89,12.12155357]
[1765433827425,3.22557417,130.91,130.89,12.17227676]
[1765433827626,3.22557417,130.91,130.89,0.05072319]
[1765433828022,3.22557417,130.91,130.89,3.00072319]
[1765433828224,3.22557417,130.91,130.89,5.29687676]
[1765433828426,3.22557417,130.91,130.89,0.05072319]
[1765433830031,0.05557417,130.91,130.9,2.95]
[1765433830229,3.22557417,130.91,130.89,2.34687676]
[1765433830427,3.22557417,130.91,130.89,0.05072319]
[1765433834835,3.22557417,130.91,130.89,3.00072319]
[1765433835638,0.05557417,130.91,130.9,2.95]
[1765433846162,6.66820459,130.92,130.91,9.7643]
[1765433846447,4.59e-06,130.92,130.91,78.27472116]
[1765433846648,4.59e-06,130.92,130.91,97.31996106]
[1765433847151,24.41,130.98,130.96,6.8717]
[1765433847335,24.46510822,130.98,130.97,64.92]
[1765433849243,24.46510822,130.98,130.97,61.47]
[1765433849449,3.31,130.97,130.96,0.04921038]
[1765433859253,3.31,130.97,130.96,2.93921038]
[1765433859459,3.25,130.97,130.96,0.04921038]
[1765433861263,3.25,130.97,130.93,64.92]
[1765433861556,3.25,130.97,130.9,109.8789]
[1765433861557,3.25,130.96,130.9,2.94]
[1765433861757,3.25,130.94,130.88,67.84]
[1765433862266,3.25,130.91,130.9,0.05761208]
[1765433862964,3.25,130.91,130.9,6.93231208]
[1765433863266,3.25,130.91,130.9,0.05761208]
[1765433863857,3.30208279,130.92,130.9,2.99761208]
[1765433864058,3.30208279,130.92,130.9,0.05761208]
[1765433868269,3.30208279,130.92,130.9,2.99761208]
[1765433868466,0.05208279,130.92,130.91,2.94]
[1765433872475,0.05208279,130.92,130.91,6.53042116]
[1765433875277,0.05208279,130.92,130.91,71.43042116]
[1765433875670,3.25,130.97,130.93,2.89]
[1765433875868,21.1,130.98,130.95,2.89]
[1765433876673,24.39938329,130.98,130.95,2.94229858]
[1765433876976,3.25,130.97,130.95,0.05229858]
[1765433886281,3.25,130.97,130.9,6.48042116]
[1765433886476,3.25,130.97,130.9,67.79]
[1765433887378,3.32,130.94,130.92,0.04841103]
[1765433898105,3.32,130.94,130.92,6.92211103]
[1765433903405,3.32,130.94,130.92,9.86211103]
[1765433904913,3.32,130.94,130.92,6.92211103]
[1765433905108,26.83,130.94,130.92,6.92211103]
[1765433905314,3.31,130.93,130.92,6.92211103]
[1765433915128,3.31,130.93,130.92,9.86211103]
[1765433915521,26.79,130.94,130.92,9.86211103]
[1765433915728,23.51,130.94,130.93,67.84]
[1765433918330,6.8e-06,130.94,130.93,88.4052399]
[1765433918516,0.05527727,130.95,130.94,9.8128]
[1765433918720,0.05527727,130.95,130.94,12.1103252]
[1765433920329,0.05527727,130.95,130.94,9.8128]
[1765433920522,3.33527727,130.95,130.94,71.7728]
[1765433922124,5.63280247,130.95,130.94,54.8904922]
[1765433922433,3.28,130.94,130.92,0.04841103]
[1765433922631,5.5775252,130.93,130.92,0.04841103]
[1765433925333,3.28,130.93,130.92,0.04841103]
[1765433929440,3.33527727,130.95,130.93,3.37]
[1765433930925,3.33527727,130.95,130.92,6.92211103]
[1765433931124,3.33527727,130.95,130.92,10.29211103]
[1765433931434,3.28,130.93,130.92,0.04841103]
[1765433938735,3.33527727,130.95,130.92,6.92191103]
[1765433940348,0.05527727,130.95,130.94,3.37]
[1765433942550,3.33527727,130.95,130.93,10.2432]
[1765433943652,3.33527727,130.95,130.92,0.04841103]
[1765433944851,3.28,130.93,130.92,0.04841103]
[1765433957262,20.18,130.94,130.92,3.43841103]
[1765433958156,17.02,130.94,130.93,3.39]
[1765433963772,17.02,130.94,130.93,4.91]
[1765433964072,0.05527727,130.95,130.94,10.2628]
[1765433964267,0.05527727,130.95,130.94,78.75464837]
[1765433966874,3.16,130.99,130.97,10.2612]
[1765433967068,21.86,131.0,130.98,3.39]
[1765433967269,3.16,130.99,130.97,75.1612]
[1765433967669,3.16,130.99,130.97,64.9]
[1765433967877,3.21591226,130.99,130.97,64.95615538]
[1765433973581,3.21591226,130.99,130.97,0.05615538]
[1765433977676,3.21591226,130.99,130.92,6.8734]
[1765433977677,3.59184837,130.98,130.92,6.8734]
[1765433977981,3.39,130.97,130.92,6.8734]
[1765433978177,3.39,130.97,130.92,10.2834]
[1765433978771,3.39,130.95,130.93,0.05378828]
[1765433979182,3.39,130.95,130.93,3.46378828]
[1765433982985,3.39,130.95,130.93,0.05378828]
[1765433985589,3.39,130.95,130.93,3.46378828]
[1765433986683,3.39,130.95,130.93,0.05378828]
[1765433992001,3.39,130.93,130.86,3.41]
[1765433992299,3.39,130.91,130.86,3.41]
[1765433992892,3.39,130.91,130.87,10.2862]
[1765433993091,3.44137994,130.9,130.88,0.05439753]
[1765434000405,3.44137994,130.9,130.85,64.9]
[1765434000614,3.39,130.87,130.8,3.41]
[1765434001110,3.39,130.85,130.8,3.41]
[1765434001306,3.39,130.85,130.81,0.05160097]
[1765434001307,0.04924086,130.84,130.81,0.05160097]
[1765434001507,3.39,130.83,130.81,0.05160097]
[1765434002018,3.39,130.83,130.81,6.93090097]
[1765434003726,3.39,130.83,130.81,0.05160097]
[1765434012823,3.39,130.83,130.81,3.22160097]
[1765434014225,3.39,130.83,130.81,0.05160097]
[1765434028232,5.69211464,130.83,130.81,0.05160097]
[1765434028431,5.69211464,130.83,130.75,3.17]
[1765434028432,3.38,130.8,130.75,3.17]
[1765434029536,3.38,130.78,130.76,3.2264482]
[1765434030043,3.38,130.78,130.76,10.1085482]
[1765434030633,3.38,130.78,130.76,3.2264482]
[1765434030843,3.38,130.78,130.76,0.0564482]
[1765434031044,3.42918383,130.79,130.76,3.2264482]
[1765434032342,3.42918383,130.79,130.77,3.17]
[1765434033838,3.42918383,130.79,130.76,9.24056284]
[1765434034145,3.38,130.77,130.76,0.0564482]
[1765434034442,3.38,130.77,130.71,70.45211464]
[1765434035244,3.42087927,130.75,130.73,3.47203637]
[1765434038150,3.42087927,130.75,130.73,0.05203637]
[1765434038643,5.72299391,130.75,130.73,0.05203637]
[1765434038849,3.37,130.74,130.73,0.05203637]
[1765434041856,5.67211464,130.74,130.73,0.05203637]
[1765434042151,3.37,130.73,130.66,110.5567]
[1765434042355,24.30211464,130.74,130.66,68.4]
[1765434042356,3.37,130.7,130.66,68.4]
[1765434042651,3.37,130.69,130.66,64.98]
[1765434043152,3.37,130.69,130.66,0.04887184]
[1765434043153,3.37,130.67,130.66,0.04887184]
[1765434043456,3.37,130.66,130.59,112.91641464]
[1765434043749,2.30211464,130.66,130.6,3.42]
[1765434043944,3.37,130.72,130.62,3.42]
[1765434044151,3.37,130.68,130.62,3.42]
[1765434044450,0.05165132,130.66,130.65,3.42]
[1765434045048,0.05165132,130.66,130.64,3.46796895]
[1765434045653,3.42165132,130.66,130.64,3.46796895]
[1765434046248,3.42165132,130.66,130.64,0.04796895]
[1765434047061,3.37,130.64,130.58,70.74211464]
[1765434047861,3.37,130.64,130.58,77.63361464]
[1765434048159,0.05848551,130.62,130.59,3.42]
[1765434048957,16.55,130.61,130.59,3.42]
[1765434053567,19.92,130.61,130.58,68.44]
[1765434053865,3.37,130.6,130.58,68.44]
[1765434054369,16.55,130.61,130.59,3.42]
[1765434054564,16.55,130.61,130.58,67.32211464]
[1765434054565,16.55,130.61,130.6,5.72211464]
[1765434054861,16.55,130.61,130.6,3.42]
[1765434056855,16.55,130.61,130.59,5.72211464]
[1765434057059,19.92,130.61,130.59,5.72211464]
[1765434057259,19.92,130.61,130.58,68.44]
[1765434057460,3.37,130.6,130.59,65.04]
[1765434057660,3.37,130.6,130.57,5.72211464]
[1765434057855,3.37,130.6,130.59,65.04]
[1765434058272,3.37,130.6,130.57,3.42]
[1765434058461,3.37,130.6,130.57,65.04]
[1765434058769,3.37,130.6,130.55,2.30211464]
[1765434058965,3.42809367,130.59,130.56,65.06]
[1765434059166,3.37,130.58,130.53,3.42]
[1765434059368,3.37,130.58,130.54,68.48]
[1765434059562,3.42809367,130.59,130.55,3.42]
[1765434059962,0.05809367,130.59,130.56,3.42]
[1765434060366,0.05809367,130.59,130.57,3.42]
[1765434060568,3.42809367,130.59,130.56,3.42]
[1765434060765,0.05809367,130.59,130.57,5.72211464]
[1765434060965,0.05809367,130.59,130.58,68.48]
[1765434061676,0.05809367,130.59,130.58,65.06]
[1765434062072,3.42809367,130.59,130.56,3.42]
[1765434062364,3.42809367,130.59,130.56,68.48]
[1765434062569,0.05809367,130.59,130.57,3.42]
[1765434062770,3.42809367,130.59,130.56,68.48]
[1765434062971,3.42809367,130.59,130.56,65.06]
[1765434063175,5.73020831,130.59,130.56,65.06]
[1765434063370,3.37,130.58,130.56,65.06]
[1765434065883,5.67211464,130.58,130.5,110.476]
[1765434066176,0.04842552,130.55,130.53,3.21]
[1765434066373,0.04842552,130.55,130.54,3.21]
[1765434067180,3.14,130.59,130.56,3.21]
[1765434067473,3.14,130.59,130.56,68.29]
[1765434067678,3.14,130.59,130.56,65.08]
[1765434068079,3.19855836,130.59,130.56,68.33842552]
[1765434068268,3.19855836,130.59,130.56,3.25842552]
[1765434068472,3.19855836,130.59,130.56,0.04842552]
[1765434069474,3.19855836,130.59,130.3,23.74744355]
[1765434069475,3.14,130.56,130.51,10.1052]
[1765434069679,3.14,130.56,130.52,3.21]
[1765434069979,3.14,130.59,130.54,5.51211464]
[1765434070178,3.14,130.59,130.54,70.59211464]
[1765434070579,3.1890452,130.58,130.54,70.59211464]
[1765434070877,0.0490452,130.58,130.55,3.21]
[1765434071882,0.0490452,130.58,130.56,3.38]
[1765434072181,3.19,130.57,130.56,3.38]
[1765434073478,3.19,130.57,130.55,3.38]
[1765434075378,6.52,130.57,130.54,70.76211464]
[1765434075987,3.33,130.56,130.54,65.08]
[1765434076289,3.33,130.56,130.52,12.57671464]
[1765434076491,3.38612535,130.55,130.52,12.57671464]
[1765434076879,3.38612535,130.55,130.53,65.08]
[1765434077086,3.38612535,130.55,130.53,3.38]
[1765434077390,0.05612535,130.55,130.54,3.38]
[1765434078781,0.05612535,130.55,130.53,65.08]
[1765434078990,3.38612535,130.55,130.53,65.08]
[1765434079377,3.38612535,130.55,130.53,68.46]
[1765434081688,0.05612535,130.55,130.54,3.38]
[1765434081984,3.38612535,130.55,130.52,3.38]
[1765434083182,3.33,130.54,130.5,6.8955]
[1765434083488,3.33,130.54,130.49,3.38]
[1765434083786,3.38250579,130.53,130.49,3.38]
[1765434084874,3.38250579,130.53,130.49,10.2761]
[1765434085080,3.38250579,130.53,130.5,3.38]
[1765434085276,3.38250579,130.53,130.49,10.2761]
[1765434085480,3.38250579,130.53,130.5,3.38]
[1765434085679,0.05250579,130.53,130.5,3.38]
[1765434087186,3.38250579,130.53,130.5,3.38]
[1765434089587,3.38250579,130.53,130.48,3.38]
[1765434089890,0.05250579,130.53,130.51,3.38]
[1765434090094,3.19,130.57,130.53,3.38]
[1765434090296,3.19,130.57,130.54,3.38]
[1765434090887,3.33,130.56,130.53,65.1]
[1765434091088,3.37892782,130.56,130.53,68.53250579]
[1765434091486,0.04892782,130.56,130.54,3.38]
[1765434092382,0.04892782,130.56,130.53,0.05250579]
[1765434092383,3.33,130.55,130.53,0.05250579]
[1765434092601,0.04892782,130.56,130.53,3.43250579]